[Event "Titled Tuesday Blitz November 15 Late 2022"]
[White "Avila Rodriguez, Joshua Ad"]
[Black "Proleiko, Julian"]
[WhiteFideId "5126444"]
[BlackFideId "30900255"]
[WhiteElo "2125"]
[BlackElo "2127"]
[Result "1-0"]
[Round "03"]
[TimeControl "180+1"]
[Date "2022.11.16"]
[WhiteClock "0:00:01"]
[BlackClock "0:00:26"]

1. e4 {[%clk 0:03:00]}  c6 {[%clk 0:02:57]} 2. d4 {[%clk 0:03:00]}  d5 {[%clk 0:02:58]} 3. e5 {[%clk 0:03:00]}  Bf5 {[%clk 0:02:56]} 4. h4 {[%clk 0:03:00]}  h6 {[%clk 0:02:55]} 5. g4 {[%clk 0:02:57]}  Bd7 {[%clk 0:02:55]} 6. Nc3 {[%clk 0:02:53]}  e6 {[%clk 0:02:55]} 7. Be3 {[%clk 0:02:51]}  Qb6 {[%clk 0:02:53]} 8. a3 {[%clk 0:02:45]}  c5 {[%clk 0:02:51]} 9. dxc5 {[%clk 0:02:41]}  Bxc5 {[%clk 0:02:43]} 10. Bxc5 {[%clk 0:02:36]}  Qxc5 {[%clk 0:02:44]} 11. Nge2 {[%clk 0:02:34]}  Nc6 {[%clk 0:02:43]} 12. f4 {[%clk 0:02:13]}  h5 {[%clk 0:02:28]} 13. gxh5 {[%clk 0:01:33]}  Nh6 {[%clk 0:02:23]} 14. Bh3 {[%clk 0:01:25]}  Qe3 {[%clk 0:02:06]} 15. Qd3 {[%clk 0:01:22]}  Qb6 {[%clk 0:01:55]} 16. O-O-O {[%clk 0:01:22]}  Ne7 {[%clk 0:01:51]} 17. Nd4 {[%clk 0:01:19]}  Rc8 {[%clk 0:01:47]} 18. Rhg1 {[%clk 0:01:14]}  Kf8 {[%clk 0:01:43]} 19. Nce2 {[%clk 0:01:06]}  a6 {[%clk 0:01:41]} 20. Kb1 {[%clk 0:01:05]}  Bb5 {[%clk 0:01:40]} 21. Nxb5 {[%clk 0:00:58]}  Qxb5 {[%clk 0:01:41]} 22. Qxb5 {[%clk 0:00:57]}  axb5 {[%clk 0:01:40]} 23. Nd4 {[%clk 0:00:56]}  Rc5 {[%clk 0:01:35]} 24. c3 {[%clk 0:00:56]}  Nc6 {[%clk 0:01:25]} 25. Rge1 {[%clk 0:00:26]}  Nxd4 {[%clk 0:01:20]} 26. Rxd4 {[%clk 0:00:26]}  Ng8 {[%clk 0:01:17]} 27. f5 {[%clk 0:00:22]}  exf5 {[%clk 0:01:13]} 28. Bxf5 {[%clk 0:00:22]}  Rxh5 {[%clk 0:01:12]} 29. Bd3 {[%clk 0:00:22]}  Ne7 {[%clk 0:01:07]} 30. Rf4 {[%clk 0:00:18]}  g6 {[%clk 0:00:50]} 31. Ref1 {[%clk 0:00:18]}  Nf5 {[%clk 0:00:50]} 32. Bxf5 {[%clk 0:00:17]}  gxf5 {[%clk 0:00:49]} 33. Rxf5 {[%clk 0:00:17]}  Rxf5 {[%clk 0:00:50]} 34. Rxf5 {[%clk 0:00:18]}  Ke7 {[%clk 0:00:50]} 35. Rf6 {[%clk 0:00:18]}  Rc4 {[%clk 0:00:48]} 36. Rb6 {[%clk 0:00:17]}  Rxh4 {[%clk 0:00:48]} 37. Rxb5 {[%clk 0:00:15]}  Ke6 {[%clk 0:00:45]} 38. Rxb7 {[%clk 0:00:12]}  Re4 {[%clk 0:00:45]} 39. Kc2 {[%clk 0:00:10]}  Rxe5 {[%clk 0:00:45]} 40. a4 {[%clk 0:00:11]}  Re2+ {[%clk 0:00:43]} 41. Kd3 {[%clk 0:00:11]}  Re1 {[%clk 0:00:44]} 42. a5 {[%clk 0:00:11]}  Rd1+ {[%clk 0:00:43]} 43. Ke2 {[%clk 0:00:10]}  Ra1 {[%clk 0:00:44]} 44. Rb6+ {[%clk 0:00:10]}  Ke5 {[%clk 0:00:43]} 45. a6 {[%clk 0:00:11]}  f5 {[%clk 0:00:43]} 46. b4 {[%clk 0:00:06]}  Ke4 {[%clk 0:00:41]} 47. Re6+ {[%clk 0:00:05]}  Kf4 {[%clk 0:00:41]} 48. Kd3 {[%clk 0:00:06]}  Rd1+ {[%clk 0:00:39]} 49. Kc2 {[%clk 0:00:06]}  Ra1 {[%clk 0:00:39]} 50. b5 {[%clk 0:00:07]}  Ra5 {[%clk 0:00:38]} 51. Re8 {[%clk 0:00:03]}  Kf3 {[%clk 0:00:35]} 52. Kd3 {[%clk 0:00:04]}  f4 {[%clk 0:00:35]} 53. Kd4 {[%clk 0:00:04]}  Kf2 {[%clk 0:00:34]} 54. Kc5 {[%clk 0:00:04]}  f3 {[%clk 0:00:33]} 55. Kb6 {[%clk 0:00:03]}  Ra3 {[%clk 0:00:27]} 56. a7 {[%clk 0:00:03]}  Rxc3 {[%clk 0:00:26]} 57. a8=Q {[%clk 0:00:02]}  d4 {[%clk 0:00:25]} 58. Rf8 {[%clk 0:00:01]}  Kf1 {[%clk 0:00:26]} 59. Rxf3+ {[%clk 0:00:01]} 1-0


[Site "https://www.chess.com"]

[Event "Titled Tuesday Blitz November 15 Late 2022"]
[White "Baskakov, Egor"]
[Black "He, Samuel"]
[WhiteFideId "24197866"]
[BlackFideId "2087235"]
[WhiteElo "2211"]
[BlackElo "2608"]
[Result "1-0"]
[Round "03"]
[TimeControl "180+1"]
[Date "2022.11.15"]
[WhiteClock "0:02:42"]
[BlackClock "0:00:59"]

1. e4 {[%clk 0:03:00]}  c6 {[%clk 0:02:59]} 2. d4 {[%clk 0:03:00]}  d5 {[%clk 0:02:59]} 3. e5 {[%clk 0:03:00]}  Bf5 {[%clk 0:02:59]} 4. Ne2 {[%clk 0:03:01]}  e6 {[%clk 0:02:51]} 5. Ng3 {[%clk 0:03:01]}  Bg6 {[%clk 0:02:52]} 6. h4 {[%clk 0:03:02]}  h6 {[%clk 0:02:52]} 7. h5 {[%clk 0:03:02]}  Bh7 {[%clk 0:02:52]} 8. Bd3 {[%clk 0:03:03]}  Bxd3 {[%clk 0:02:52]} 9. cxd3 {[%clk 0:03:04]}  c5 {[%clk 0:02:50]} 10. dxc5 {[%clk 0:03:05]}  Bxc5 {[%clk 0:02:47]} 11. d4 {[%clk 0:03:06]}  Bb6 {[%clk 0:02:36]} 12. Nc3 {[%clk 0:03:06]}  Nc6 {[%clk 0:02:36]} 13. Be3 {[%clk 0:03:06]}  Nge7 {[%clk 0:02:30]} 14. Qg4 {[%clk 0:03:04]}  Rg8 {[%clk 0:02:23]} 15. O-O {[%clk 0:03:01]}  Qd7 {[%clk 0:02:06]} 16. Rad1 {[%clk 0:03:00]}  O-O-O {[%clk 0:02:00]} 17. Na4 {[%clk 0:02:56]}  Nf5 {[%clk 0:01:56]} 18. Nxf5 {[%clk 0:02:53]}  exf5 {[%clk 0:01:56]} 19. Nxb6+ {[%clk 0:02:53]}  axb6 {[%clk 0:01:56]} 20. Qe2 {[%clk 0:02:54]}  Ne7 {[%clk 0:01:38]} 21. Rd3 {[%clk 0:02:52]}  Kb8 {[%clk 0:01:27]} 22. e6 {[%clk 0:02:52]}  fxe6 {[%clk 0:01:21]} 23. Bf4+ {[%clk 0:02:52]}  Kc8 {[%clk 0:01:21]} 24. Rc1+ {[%clk 0:02:51]}  Nc6 {[%clk 0:01:20]} 25. Ra3 {[%clk 0:02:52]}  Qe8 {[%clk 0:00:59]} 26. Qe5 {[%clk 0:02:42]} 1-0


[Site "https://www.chess.com"]

[Event "Titled Tuesday Blitz November 15 Late 2022"]
[White "Bayo Milagro, Alvaro"]
[Black "Mickiewicz, Piotr"]
[WhiteFideId "22275240"]
[BlackFideId "1114891"]
[WhiteElo "2270"]
[BlackElo "2246"]
[Result "0-1"]
[Round "03"]
[TimeControl "180+1"]
[Date "2022.11.16"]
[WhiteClock "0:00:49"]
[BlackClock "0:00:28"]

1. e4 {[%clk 0:03:00]}  c5 {[%clk 0:02:58]} 2. Nf3 {[%clk 0:02:59]}  Nc6 {[%clk 0:02:57]} 3. d4 {[%clk 0:02:59]}  cxd4 {[%clk 0:02:58]} 4. Nxd4 {[%clk 0:03:00]}  e5 {[%clk 0:02:58]} 5. Nb5 {[%clk 0:03:00]}  d6 {[%clk 0:02:57]} 6. g3 {[%clk 0:03:00]}  Nf6 {[%clk 0:02:51]} 7. Bg2 {[%clk 0:03:00]}  Bg4 {[%clk 0:02:46]} 8. Qd2 {[%clk 0:02:58]}  a6 {[%clk 0:02:44]} 9. N5c3 {[%clk 0:02:58]}  Be7 {[%clk 0:02:42]} 10. h3 {[%clk 0:02:59]}  Be6 {[%clk 0:02:40]} 11. O-O {[%clk 0:02:59]}  h5 {[%clk 0:02:35]} 12. Nd5 {[%clk 0:02:58]}  h4 {[%clk 0:02:32]} 13. g4 {[%clk 0:02:59]}  Bxd5 {[%clk 0:02:18]} 14. exd5 {[%clk 0:02:57]}  Nb8 {[%clk 0:02:18]} 15. c4 {[%clk 0:02:56]}  Nbd7 {[%clk 0:02:16]} 16. Nc3 {[%clk 0:02:56]}  O-O {[%clk 0:02:09]} 17. Qe2 {[%clk 0:02:55]}  Rc8 {[%clk 0:01:53]} 18. Bd2 {[%clk 0:02:50]}  Nh7 {[%clk 0:01:50]} 19. b3 {[%clk 0:02:39]}  Bg5 {[%clk 0:01:47]} 20. Ne4 {[%clk 0:02:37]}  Bxd2 {[%clk 0:01:34]} 21. Qxd2 {[%clk 0:02:38]}  Nc5 {[%clk 0:01:34]} 22. Nc3 {[%clk 0:02:33]}  Ng5 {[%clk 0:01:33]} 23. b4 {[%clk 0:02:29]}  Nd7 {[%clk 0:01:30]} 24. f4 {[%clk 0:02:12]}  exf4 {[%clk 0:01:26]} 25. Qxf4 {[%clk 0:02:09]}  Ne5 {[%clk 0:01:23]} 26. c5 {[%clk 0:02:08]}  f6 {[%clk 0:01:15]} 27. Na4 {[%clk 0:01:26]}  Re8 {[%clk 0:01:01]} 28. Rad1 {[%clk 0:01:19]}  b5 {[%clk 0:00:54]} 29. Nb6 {[%clk 0:01:14]}  Rc7 {[%clk 0:00:35]} 30. c6 {[%clk 0:01:12]}  Rce7 {[%clk 0:00:33]} 31. Qf2 {[%clk 0:01:05]}  Nef3+ {[%clk 0:00:28]} 32. Bxf3 {[%clk 0:00:48]}  Nxh3+ {[%clk 0:00:27]} 33. Kg2 {[%clk 0:00:49]}  Nxf2 {[%clk 0:00:28]} 0-1


[Site "https://www.chess.com"]

[Event "Titled Tuesday Blitz November 15 Late 2022"]
[White "Besedes, Danilo"]
[Black "Curtis, John"]
[WhiteFideId "946796"]
[BlackFideId "3200256"]
[WhiteElo "2352"]
[BlackElo "2203"]
[Result "0-1"]
[Round "03"]
[TimeControl "180+1"]
[Date "2022.11.16"]
[WhiteClock "0:01:59"]
[BlackClock "0:01:17"]

1. Nf3 {[%clk 0:03:00]}  d5 {[%clk 0:02:50]} 2. d3 {[%clk 0:02:58]}  c5 {[%clk 0:02:48]} 3. g3 {[%clk 0:02:53]}  Nc6 {[%clk 0:02:46]} 4. Bg2 {[%clk 0:02:54]}  e5 {[%clk 0:02:46]} 5. O-O {[%clk 0:02:54]}  f6 {[%clk 0:02:46]} 6. e4 {[%clk 0:02:54]}  Nge7 {[%clk 0:02:45]} 7. Nc3 {[%clk 0:02:53]}  Be6 {[%clk 0:02:44]} 8. Nh4 {[%clk 0:02:53]}  Qd7 {[%clk 0:02:44]} 9. f4 {[%clk 0:02:52]}  exf4 {[%clk 0:02:42]} 10. gxf4 {[%clk 0:02:49]}  O-O-O {[%clk 0:02:33]} 11. a4 {[%clk 0:02:47]}  Nd4 {[%clk 0:02:32]} 12. Be3 {[%clk 0:02:44]}  f5 {[%clk 0:02:25]} 13. e5 {[%clk 0:02:41]}  Ng6 {[%clk 0:02:16]} 14. Nf3 {[%clk 0:02:36]}  Nxf3+ {[%clk 0:02:15]} 15. Qxf3 {[%clk 0:02:29]}  d4 {[%clk 0:02:14]} 16. Nb5 {[%clk 0:02:28]}  Nh4 {[%clk 0:02:10]} 17. Qg3 {[%clk 0:02:25]}  Nxg2 {[%clk 0:02:09]} 18. Qxg2 {[%clk 0:02:21]}  dxe3 {[%clk 0:02:02]} 19. Qf3 {[%clk 0:02:12]}  Kb8 {[%clk 0:01:55]} 20. Rad1 {[%clk 0:02:07]}  Be7 {[%clk 0:01:47]} 21. c3 {[%clk 0:01:59]}  a6 {[%clk 0:01:41]} 22. Na3 {[%clk 0:01:59]}  g5 {[%clk 0:01:36]} 23. Qxe3 {[%clk 0:01:58]}  gxf4 {[%clk 0:01:36]} 24. Qxf4 {[%clk 0:01:59]}  Rhg8+ {[%clk 0:01:35]} 25. Kf2 {[%clk 0:01:59]}  Rg4 {[%clk 0:01:32]} 26. Qh6 {[%clk 0:01:59]}  Rh8 {[%clk 0:01:17]} 0-1


[Site "https://www.chess.com"]

[Event "Titled Tuesday Blitz November 15 Late 2022"]
[White "Bordi, Kevin"]
[Black "Andreikin, Dmitry"]
[WhiteFideId "621862"]
[BlackFideId "4158814"]
[WhiteElo "2807"]
[BlackElo "2736"]
[Result "0-1"]
[Round "03"]
[TimeControl "180+1"]
[Date "2022.11.15"]
[WhiteClock "0:00:11"]
[BlackClock "0:00:39"]

1. e4 {[%clk 0:03:00]}  c5 {[%clk 0:02:59]} 2. Nf3 {[%clk 0:03:01]}  e6 {[%clk 0:02:59]} 3. d4 {[%clk 0:02:59]}  cxd4 {[%clk 0:03:00]} 4. Nxd4 {[%clk 0:03:00]}  a6 {[%clk 0:03:00]} 5. h3 {[%clk 0:02:58]}  Nf6 {[%clk 0:02:44]} 6. Bd3 {[%clk 0:02:53]}  Qc7 {[%clk 0:02:39]} 7. O-O {[%clk 0:02:44]}  Bc5 {[%clk 0:02:39]} 8. Nb3 {[%clk 0:02:42]}  Ba7 {[%clk 0:02:39]} 9. Qf3 {[%clk 0:02:33]}  Nc6 {[%clk 0:02:36]} 10. Bf4 {[%clk 0:02:32]}  d6 {[%clk 0:02:19]} 11. Nc3 {[%clk 0:02:08]}  Ne5 {[%clk 0:02:18]} 12. Qe2 {[%clk 0:02:04]}  b5 {[%clk 0:02:16]} 13. Rad1 {[%clk 0:02:02]}  O-O {[%clk 0:02:14]} 14. Bg5 {[%clk 0:01:53]}  b4 {[%clk 0:02:13]} 15. Nb1 {[%clk 0:01:47]}  Bb7 {[%clk 0:02:12]} 16. N1d2 {[%clk 0:01:47]}  a5 {[%clk 0:02:08]} 17. Kh2 {[%clk 0:01:42]}  a4 {[%clk 0:02:05]} 18. Nc1 {[%clk 0:01:42]}  Nxd3 {[%clk 0:01:58]} 19. Nxd3 {[%clk 0:01:42]}  Ba6 {[%clk 0:01:47]} 20. Bxf6 {[%clk 0:01:41]}  gxf6 {[%clk 0:01:47]} 21. Qg4+ {[%clk 0:01:39]}  Kh8 {[%clk 0:01:47]} 22. Qh4 {[%clk 0:01:40]}  Rg8 {[%clk 0:01:27]} 23. Qxf6+ {[%clk 0:01:31]}  Rg7 {[%clk 0:01:27]} 24. f4 {[%clk 0:01:13]}  b3 {[%clk 0:01:15]} 25. axb3 {[%clk 0:01:05]}  axb3 {[%clk 0:01:15]} 26. c4 {[%clk 0:01:03]}  Qd8 {[%clk 0:01:06]} 27. Qc3 {[%clk 0:01:00]}  Qh4 {[%clk 0:01:02]} 28. Nb4 {[%clk 0:00:47]}  Bb7 {[%clk 0:00:59]} 29. Rf3 {[%clk 0:00:42]}  Rg8 {[%clk 0:00:53]} 30. g3 {[%clk 0:00:42]}  Qh5 {[%clk 0:00:49]} 31. Qxb3 {[%clk 0:00:41]}  Rxg3 {[%clk 0:00:39]} 32. Rxg3 {[%clk 0:00:37]}  Qe2+ {[%clk 0:00:39]} 33. Kh1 {[%clk 0:00:31]}  Rxg3 {[%clk 0:00:39]} 34. Qxg3 {[%clk 0:00:11]}  Qxd1+ {[%clk 0:00:39]} 35. Kh2 {[%clk 0:00:11]}  Qxd2+ {[%clk 0:00:39]} 0-1


[Site "https://www.chess.com"]

[Event "Titled Tuesday Blitz November 15 Late 2022"]
[White "Chigaev, Maksim"]
[Black "Milchev, Nikolay"]
[WhiteFideId "4108116"]
[BlackFideId "2906090"]
[WhiteElo "2541"]
[BlackElo "2449"]
[Result "1-0"]
[Round "03"]
[TimeControl "180+1"]
[Date "2022.11.16"]
[WhiteClock "0:00:14"]
[BlackClock "0:00:59"]

1. Nf3 {[%clk 0:02:57]}  Nf6 {[%clk 0:03:00]} 2. c4 {[%clk 0:02:57]}  g6 {[%clk 0:03:01]} 3. Nc3 {[%clk 0:02:57]}  Bg7 {[%clk 0:03:02]} 4. e4 {[%clk 0:02:58]}  d6 {[%clk 0:03:02]} 5. d4 {[%clk 0:02:59]}  O-O {[%clk 0:03:03]} 6. Be2 {[%clk 0:02:59]}  c5 {[%clk 0:03:03]} 7. O-O {[%clk 0:03:00]}  Bg4 {[%clk 0:03:03]} 8. d5 {[%clk 0:02:56]}  b5 {[%clk 0:03:03]} 9. cxb5 {[%clk 0:02:52]}  a6 {[%clk 0:03:03]} 10. a4 {[%clk 0:02:49]}  axb5 {[%clk 0:03:03]} 11. Bxb5 {[%clk 0:02:50]}  Na6 {[%clk 0:03:01]} 12. h3 {[%clk 0:02:49]}  Bxf3 {[%clk 0:03:01]} 13. Qxf3 {[%clk 0:02:50]}  Nb4 {[%clk 0:03:02]} 14. Qe2 {[%clk 0:02:49]}  Nd7 {[%clk 0:03:02]} 15. f4 {[%clk 0:02:40]}  Qc7 {[%clk 0:03:02]} 16. Kh1 {[%clk 0:02:39]}  Rfb8 {[%clk 0:03:00]} 17. Be3 {[%clk 0:02:38]}  Bd4 {[%clk 0:02:36]} 18. Bd2 {[%clk 0:02:24]}  Bg7 {[%clk 0:02:29]} 19. Rac1 {[%clk 0:02:24]}  Nb6 {[%clk 0:02:28]} 20. Be3 {[%clk 0:02:21]}  Qd8 {[%clk 0:02:10]} 21. Rcd1 {[%clk 0:02:17]}  Qc7 {[%clk 0:02:08]} 22. Bg1 {[%clk 0:02:12]}  c4 {[%clk 0:01:59]} 23. Bxb6 {[%clk 0:01:50]}  Qxb6 {[%clk 0:02:00]} 24. Bxc4 {[%clk 0:01:50]}  Rc8 {[%clk 0:01:51]} 25. e5 {[%clk 0:01:50]}  Nc2 {[%clk 0:01:39]} 26. Qxc2 {[%clk 0:01:14]}  Rxc4 {[%clk 0:01:39]} 27. Qe2 {[%clk 0:01:15]}  Rb4 {[%clk 0:01:36]} 28. Rd2 {[%clk 0:01:08]}  Rc8 {[%clk 0:01:27]} 29. Ne4 {[%clk 0:00:22]}  dxe5 {[%clk 0:01:22]} 30. d6 {[%clk 0:00:23]}  exd6 {[%clk 0:01:18]} 31. Nxd6 {[%clk 0:00:13]}  Rf8 {[%clk 0:01:07]} 32. fxe5 {[%clk 0:00:13]}  Rxa4 {[%clk 0:01:08]} 33. e6 {[%clk 0:00:13]}  fxe6 {[%clk 0:01:00]} 34. Qxe6+ {[%clk 0:00:14]}  Kh8 {[%clk 0:01:00]} 35. Rxf8+ {[%clk 0:00:14]}  Bxf8 {[%clk 0:01:00]} 36. Nf7+ {[%clk 0:00:14]}  Kg7 {[%clk 0:01:00]} 37. Qxb6 {[%clk 0:00:14]}  Kxf7 {[%clk 0:01:00]} 38. Rf2+ {[%clk 0:00:14]}  Kg7 {[%clk 0:00:58]} 39. Qf6+ {[%clk 0:00:14]}  Kg8 {[%clk 0:00:59]} 40. Qxf8# {[%clk 0:00:14]} 1-0


[Site "https://www.chess.com"]

[Event "Titled Tuesday Blitz November 15 Late 2022"]
[White "Chirilov, James A"]
[Black "Golubev, Mikhail"]
[WhiteFideId "30976677"]
[BlackFideId "14100983"]
[WhiteElo "1790"]
[BlackElo "2374"]
[Result "0-1"]
[Round "03"]
[TimeControl "180+1"]
[Date "2022.11.16"]
[WhiteClock "0:00:06"]
[BlackClock "0:00:10"]

1. e4 {[%clk 0:03:00]}  c5 {[%clk 0:02:59]} 2. Nf3 {[%clk 0:03:00]}  d6 {[%clk 0:02:59]} 3. d4 {[%clk 0:03:00]}  Nf6 {[%clk 0:02:59]} 4. Nc3 {[%clk 0:03:00]}  cxd4 {[%clk 0:02:59]} 5. Nxd4 {[%clk 0:03:00]}  g6 {[%clk 0:02:59]} 6. f3 {[%clk 0:02:59]}  Bg7 {[%clk 0:02:59]} 7. Be3 {[%clk 0:02:59]}  O-O {[%clk 0:02:58]} 8. Qd2 {[%clk 0:02:59]}  Nc6 {[%clk 0:02:59]} 9. O-O-O {[%clk 0:03:00]}  d5 {[%clk 0:02:58]} 10. Nxc6 {[%clk 0:02:58]}  bxc6 {[%clk 0:02:57]} 11. Bh6 {[%clk 0:02:58]}  Bxh6 {[%clk 0:02:57]} 12. Qxh6 {[%clk 0:02:59]}  Rb8 {[%clk 0:02:54]} 13. h4 {[%clk 0:02:42]}  Qa5 {[%clk 0:02:53]} 14. h5 {[%clk 0:02:28]}  Rxb2 {[%clk 0:02:01]} 15. Kxb2 {[%clk 0:02:29]}  Qb4+ {[%clk 0:01:59]} 16. Kc1 {[%clk 0:02:29]}  Qxc3 {[%clk 0:01:58]} 17. hxg6 {[%clk 0:02:23]}  fxg6 {[%clk 0:01:50]} 18. Bd3 {[%clk 0:02:13]}  dxe4 {[%clk 0:01:42]} 19. Bxe4 {[%clk 0:02:01]}  Qa1+ {[%clk 0:01:34]} 20. Kd2 {[%clk 0:01:59]}  Nxe4+ {[%clk 0:01:35]} 21. fxe4 {[%clk 0:01:54]}  Qd4+ {[%clk 0:01:28]} 22. Kc1 {[%clk 0:01:53]}  Qa1+ {[%clk 0:01:23]} 23. Kd2 {[%clk 0:01:47]}  Rd8+ {[%clk 0:00:29]} 24. Ke3 {[%clk 0:00:58]}  Rxd1 {[%clk 0:00:28]} 25. Qxh7+ {[%clk 0:00:58]}  Kf8 {[%clk 0:00:28]} 26. Rxd1 {[%clk 0:00:58]}  Qxd1 {[%clk 0:00:28]} 27. Qh8+ {[%clk 0:00:58]}  Kf7 {[%clk 0:00:28]} 28. Qxc8 {[%clk 0:00:59]}  Qxc2 {[%clk 0:00:26]} 29. g4 {[%clk 0:00:54]}  Qxa2 {[%clk 0:00:20]} 30. Qxc6 {[%clk 0:00:52]}  Qe6 {[%clk 0:00:18]} 31. Qb7 {[%clk 0:00:43]}  Qxg4 {[%clk 0:00:17]} 32. Kd4 {[%clk 0:00:23]}  Qg1+ {[%clk 0:00:17]} 33. Ke5 {[%clk 0:00:20]}  Qc5+ {[%clk 0:00:15]} 34. Kf4 {[%clk 0:00:19]}  Qb6 {[%clk 0:00:15]} 35. Qa8 {[%clk 0:00:18]}  Qc7+ {[%clk 0:00:14]} 36. Kg4 {[%clk 0:00:15]}  Kg7 {[%clk 0:00:13]} 37. Qd5 {[%clk 0:00:14]}  Qd6 {[%clk 0:00:12]} 38. Qb7 {[%clk 0:00:12]}  a5 {[%clk 0:00:09]} 39. Qb5 {[%clk 0:00:10]}  Qe6+ {[%clk 0:00:08]} 40. Kf3 {[%clk 0:00:08]}  Qf6+ {[%clk 0:00:09]} 41. Kg4 {[%clk 0:00:08]}  Qc3 {[%clk 0:00:09]} 42. Qd7 {[%clk 0:00:07]}  Qb4 {[%clk 0:00:08]} 43. Kg5 {[%clk 0:00:04]}  a4 {[%clk 0:00:08]} 44. Qe6 {[%clk 0:00:02]}  Qc5+ {[%clk 0:00:07]} 45. Kg4 {[%clk 0:00:02]}  Qd6 {[%clk 0:00:08]} 46. Qa2 {[%clk 0:00:02]}  Qd7+ {[%clk 0:00:08]} 47. Kf4 {[%clk 0:00:02]}  Qc6 {[%clk 0:00:08]} 48. Qa1+ {[%clk 0:00:01]}  Qf6+ {[%clk 0:00:07]} 49. Qxf6+ {[%clk 0:00:01]}  Kxf6 {[%clk 0:00:08]} 50. Ke3 {[%clk 0:00:02]}  Ke5 {[%clk 0:00:08]} 51. Kd3 {[%clk 0:00:03]}  g5 {[%clk 0:00:08]} 52. Kc2 {[%clk 0:00:04]}  g4 {[%clk 0:00:09]} 53. Kb2 {[%clk 0:00:05]}  Kxe4 {[%clk 0:00:09]} 54. Ka3 {[%clk 0:00:05]}  g3 {[%clk 0:00:10]} 55. Kb4 {[%clk 0:00:06]}  g2 {[%clk 0:00:10]} 0-1


[Site "https://www.chess.com"]

[Event "Titled Tuesday Blitz November 15 Late 2022"]
[White "Djokic, Mihailo"]
[Black "Ward, Ieuan C"]
[WhiteFideId "976440"]
[BlackFideId "406627"]
[WhiteElo "2315"]
[BlackElo "2341"]
[Result "1-0"]
[Round "03"]
[TimeControl "180+1"]
[Date "2022.11.16"]
[WhiteClock "0:01:06"]
[BlackClock "0:00:01"]

1. e4 {[%clk 0:03:00]}  d5 {[%clk 0:02:54]} 2. exd5 {[%clk 0:03:00]}  Qxd5 {[%clk 0:02:54]} 3. Nc3 {[%clk 0:03:01]}  Qd6 {[%clk 0:02:55]} 4. d4 {[%clk 0:03:01]}  Nf6 {[%clk 0:02:54]} 5. Nf3 {[%clk 0:03:01]}  Bg4 {[%clk 0:02:53]} 6. Be2 {[%clk 0:03:00]}  c6 {[%clk 0:02:53]} 7. O-O {[%clk 0:02:55]}  e6 {[%clk 0:02:53]} 8. Be3 {[%clk 0:02:54]}  Nbd7 {[%clk 0:02:50]} 9. h3 {[%clk 0:02:54]}  Bh5 {[%clk 0:02:50]} 10. Nd2 {[%clk 0:02:54]}  Bxe2 {[%clk 0:02:50]} 11. Qxe2 {[%clk 0:02:55]}  Be7 {[%clk 0:02:50]} 12. Nc4 {[%clk 0:02:55]}  Qc7 {[%clk 0:02:50]} 13. Qf3 {[%clk 0:02:53]}  Nd5 {[%clk 0:02:47]} 14. Bd2 {[%clk 0:02:52]}  Nxc3 {[%clk 0:02:45]} 15. bxc3 {[%clk 0:02:51]}  O-O {[%clk 0:02:38]} 16. Bf4 {[%clk 0:02:52]}  Qd8 {[%clk 0:02:33]} 17. Rab1 {[%clk 0:02:51]}  Nb6 {[%clk 0:02:30]} 18. Na5 {[%clk 0:02:50]}  Qd7 {[%clk 0:02:22]} 19. c4 {[%clk 0:02:49]}  c5 {[%clk 0:02:08]} 20. dxc5 {[%clk 0:02:46]}  Bxc5 {[%clk 0:02:08]} 21. Nxb7 {[%clk 0:02:46]}  Be7 {[%clk 0:01:57]} 22. c5 {[%clk 0:02:46]}  Nd5 {[%clk 0:01:54]} 23. Bd6 {[%clk 0:02:42]}  Bxd6 {[%clk 0:01:49]} 24. Nxd6 {[%clk 0:02:33]}  Qc6 {[%clk 0:01:47]} 25. c4 {[%clk 0:02:31]}  Qxc5 {[%clk 0:01:38]} 26. cxd5 {[%clk 0:02:24]}  Qxd6 {[%clk 0:01:37]} 27. dxe6 {[%clk 0:02:21]}  Qxe6 {[%clk 0:01:38]} 28. a4 {[%clk 0:02:18]}  Rab8 {[%clk 0:01:29]} 29. Rb7 {[%clk 0:02:13]}  Qa6 {[%clk 0:01:15]} 30. Rxb8 {[%clk 0:01:57]}  Rxb8 {[%clk 0:01:16]} 31. Qe4 {[%clk 0:01:46]}  h6 {[%clk 0:01:03]} 32. Rc1 {[%clk 0:01:45]}  Qd6 {[%clk 0:01:00]} 33. g3 {[%clk 0:01:40]}  Qd7 {[%clk 0:00:50]} 34. h4 {[%clk 0:01:34]}  Re8 {[%clk 0:00:48]} 35. Qf4 {[%clk 0:01:28]}  Rc8 {[%clk 0:00:26]} 36. Re1 {[%clk 0:01:27]}  Re8 {[%clk 0:00:25]} 37. Rb1 {[%clk 0:01:26]}  Kh7 {[%clk 0:00:23]} 38. Kh2 {[%clk 0:01:24]}  g6 {[%clk 0:00:21]} 39. a5 {[%clk 0:01:22]}  h5 {[%clk 0:00:19]} 40. a6 {[%clk 0:01:21]}  Qe6 {[%clk 0:00:17]} 41. Rb7 {[%clk 0:01:21]}  Re7 {[%clk 0:00:14]} 42. Qb4 {[%clk 0:01:18]}  Qe2 {[%clk 0:00:06]} 43. Qc5 {[%clk 0:01:09]}  Re6 {[%clk 0:00:02]} 44. Rxf7+ {[%clk 0:01:08]}  Kh6 {[%clk 0:00:01]} 45. Qc1+ {[%clk 0:01:06]} 1-0


[Site "https://www.chess.com"]